fUST/lending_fUST_20250419
["ID","MTS","AMOUNT","RATE_DAILY","PERIOD"]
[358374333,1745011832640,-500.0,0.0001825,2]
[358374335,1745011832650,-500.0,0.0001825,2]
[358374336,1745011832659,-500.0,0.0001825,2]
[358374337,1745011832669,-500.0,0.0001825,2]
[358374339,1745011832679,-500.0,0.0001825,2]
[358374341,1745011832688,-500.0,0.0001825,2]
[358374343,1745011832699,-500.0,0.0001825,2]
[358374345,1745011832709,-613.59324055,0.0001825,2]
[358374347,1745011832718,-500.0,0.0001825,2]
[358374349,1745011832728,-500.0,0.0001825,2]
[358374351,1745011832737,-500.0,0.0001825,2]
[358374353,1745011832747,-500.0,0.0001825,2]
[358374355,1745011832757,-500.0,0.0001825,2]
[358374357,1745011832767,-500.0,0.0001825,2]
[358374359,1745011832776,-500.0,0.0001825,2]
[358374361,1745011832786,-500.0,0.0001825,2]
[358374363,1745011832796,-500.0,0.0001825,2]
[358374365,1745011832805,-500.0,0.0001825,2]
[358374367,1745011832814,-500.0,0.0001825,2]
[358374369,1745011832824,-500.0,0.0001825,2]
[358374371,1745011832834,-73.21398181,0.0001825,2]
[358374373,1745011832846,-426.78601819,0.0001825,2]
[358374375,1745011832856,-500.0,0.0001825,2]
[358374377,1745011832866,-287.75544512,0.0001825,2]
[358374378,1745011832882,-212.24455488,0.0001825,2]
[358374379,1745011832891,-500.0,0.0001825,2]
[358374380,1745011832901,-500.0,0.0001825,2]
[358374381,1745011832910,-500.0,0.0001825,2]
[358374382,1745011832920,-500.0,0.0001825,2]
[358374383,1745011832930,-500.0,0.0001825,2]
[358374384,1745011832940,-190.89313901,0.0001825,2]
[358374385,1745011832950,-500.0,0.0001825,2]
[358374386,1745011832960,-500.0,0.0001825,2]
[358374387,1745011832970,-500.0,0.0001825,2]
[358374388,1745011832980,-500.0,0.0001825,2]
[358374389,1745011832990,-500.0,0.0001825,2]
[358374390,1745011833001,-500.0,0.0001825,2]
[358374391,1745011833011,-500.0,0.0001825,2]
[358374392,1745011833020,-500.0,0.0001825,2]
[358374393,1745011833030,-500.0,0.0001825,2]
[358374394,1745011833040,-500.0,0.0001825,2]
[358374395,1745011833050,-500.0,0.0001825,2]
[358374396,1745011833059,-500.0,0.0001825,2]
[358374397,1745011833069,-500.0,0.0001825,2]
[358374398,1745011833079,-500.0,0.0001825,2]
[358374399,1745011833088,-500.0,0.0001825,2]
[358374400,1745011833098,-500.0,0.0001825,2]
[358374401,1745011833107,-500.0,0.0001825,2]
[358374402,1745011833116,-500.0,0.0001825,2]
[358374403,1745011833126,-500.0,0.0001825,2]
[358374404,1745011833136,-500.0,0.0001825,2]
[358374405,1745011833146,-500.0,0.0001825,2]
[358374406,1745011833155,-500.0,0.0001825,2]
[358374407,1745011833167,-500.0,0.0001825,2]
[358374408,1745011833177,-500.0,0.0001825,2]
[358374409,1745011833187,-500.0,0.0001825,2]
[358374410,1745011833196,-500.0,0.0001825,2]
[358374411,1745011833206,-500.0,0.0001825,2]
[358374412,1745011833217,-500.0,0.0001825,2]
[358374413,1745011833227,-500.0,0.0001825,2]
[358374414,1745011833236,-500.0,0.0001825,2]
[358374415,1745011833246,-500.0,0.0001825,2]
[358374416,1745011833256,-500.0,0.0001825,2]
[358374417,1745011833266,-500.0,0.0001825,2]
[358374418,1745011833276,-500.0,0.0001825,2]
[358374419,1745011833286,-500.0,0.0001825,2]
[358374420,1745011833295,-500.0,0.0001825,2]
[358374421,1745011833305,-500.0,0.0001825,2]
[358374422,1745011833315,-500.0,0.0001825,2]
[358374423,1745011833325,-247.47116823,0.0001825,2]
[358374424,1745011833335,-500.0,0.0001825,2]
[358374425,1745011833347,-500.0,0.0001825,2]
[358374426,1745011833357,-500.0,0.0001825,2]
[358374427,1745011833367,-500.0,0.0001825,2]
[358374428,1745011833377,-500.0,0.0001825,2]
[358374429,1745011833387,-500.0,0.0001825,2]
[358374430,1745011833397,-500.0,0.0001825,2]
[358374431,1745011833407,-500.0,0.0001825,2]
[358374432,1745011833417,-500.0,0.0001825,2]
[358374433,1745011833427,-500.0,0.0001825,2]
[358374434,1745011833437,-500.0,0.0001825,2]
[358374435,1745011833446,-500.0,0.0001825,2]
[358374436,1745011833456,-500.0,0.0001825,2]
[358374437,1745011833465,-242.47314135,0.0001825,2]
[358374438,1745011833479,-257.52685865,0.0001825,2]
[358374439,1745011833489,-500.0,0.0001825,2]
[358374440,1745011833498,-500.0,0.0001825,2]
[358374441,1745011833508,-500.0,0.00018299,2]
[358374442,1745011833518,-500.0,0.00018299,2]
[358374443,1745011833528,-253.43350067,0.00018299,2]
[358374444,1745011833537,-500.0,0.000183,2]
[358374445,1745011833546,-500.0,0.000183,2]
[358374446,1745011833556,-500.0,0.000183,2]
[358374447,1745011833565,-534.44279293,0.000183,2]
[358374448,1745011833575,-500.0,0.000183,2]
[358374449,1745011833585,-500.0,0.000183,2]
[358374450,1745011833595,-500.0,0.000183,2]
[358374451,1745011833604,-500.0,0.000183,2]
[358374452,1745011833614,-500.0,0.000183,2]
[358374453,1745011833623,-500.0,0.000183,2]
[358374454,1745011833633,-500.0,0.000183,2]
[358374455,1745011833642,-500.0,0.000183,2]
[358374456,1745011833652,-500.0,0.000183,2]
[358374457,1745011833662,-500.0,0.000183,2]
[358374458,1745011833672,-500.0,0.000183,2]
[358374459,1745011833681,-500.0,0.000183,2]
[358374460,1745011833691,-500.0,0.000183,2]
[358374461,1745011833701,-500.0,0.000183,2]
[358374462,1745011833711,-500.0,0.000183,2]
[358374463,1745011833720,-152.75777725,0.000183,2]
[358374464,1745011833733,-347.24222275,0.000183,2]
[358374465,1745011833743,-500.0,0.000183,2]
[358374466,1745011833753,-500.0,0.000183,2]
[358374467,1745011833763,-512.28105919,0.000183,2]
[358374468,1745011833773,-500.0,0.000183,2]
[358374469,1745011833783,-500.0,0.000183,2]
[358374470,1745011833793,-500.0,0.000183,2]
[358374471,1745011833803,-1300.2545379,0.00018904,2]
[358374472,1745011833813,-152.0,0.00018961,2]
[358374473,1745011833822,-151.0,0.00019178,2]
[358374474,1745011833832,-300.0,0.00019178,2]
[358374475,1745011833842,-5333.13522472,0.00019299,2]
[358374476,1745011833852,-192.0,0.00019388,2]
[358374477,1745011833861,-24900.0,0.00019399,2]
[358374478,1745011833871,-13882.6286034,0.00019426,2]
[358374479,1745011833880,-151.0,0.0001961,2]
[358374480,1745011833890,-5333.13522472,0.00019743,2]
[358374481,1745011833900,-152.0,0.00019824,2]
[358374482,1745011833910,-474.46073789,0.00019829,2]
[358374483,1745011833920,-988.16983958,0.00019899,2]
[358374484,1745011833930,-1287.4777086,0.000199,2]
[358374485,1745011833940,-420.0,0.00020004,2]
[358374486,1745011833949,-5333.13522472,0.00020186,2]
[358374487,1745011833959,-160.0,0.00020528,2]
[358374488,1745011833969,-839.29847495,0.00020528,2]
[358374489,1745011833979,-160.0,0.00020528,2]
[358374490,1745011833989,-160.0,0.00020528,2]
[358374491,1745011833999,-10515.29980169,0.00020529,2]
[358374492,1745011834011,-2038.07016963,0.00020529,2]
[358374493,1745011834021,-5333.13522472,0.0002063,2]
[358374494,1745011834031,-1287.47770849,0.00020797,3]
[358374495,1745011834041,-600.0,0.00020822,2]
[358374496,1745011834050,-1433.0,0.00020988,2]
[358374497,1745011834060,-5706.78501741,0.0002099,2]
[358374498,1745011834071,-5333.13522472,0.00021073,2]
[358374499,1745011834081,-370000.0,0.00021106,2]
[358374500,1745011834091,-1120.57266157,0.00021116,2]
[358374501,1745011834101,-500.0,0.00021173,2]
[358374502,1745011834110,-500.0,0.00021173,2]
[358374503,1745011834119,-2248.0,0.00021234,2]
[358374504,1745011834128,-402.0,0.00021234,2]
[358374505,1745011834138,-218.878,0.00021589,2]
[358374506,1745011834148,-1287.47770849,0.00021693,3]
[358374507,1745011834157,-231.79,0.000218,2]
[358374508,1745011834166,-200.0,0.000219,2]
[358374509,1745011834175,-151.0,0.000219,120]
[358374510,1745011834185,-57516.88511667,0.00021917,2]
[358374511,1745011834197,-193.06466763,0.00021917,2]
[358374512,1745011834207,-569.25454933,0.00021917,3]
[358374533,1745011838785,-707.0,0.00021234,2]
[358374535,1745011838795,-5031.40460656,0.00021917,3]
[358374537,1745011838805,-15855.58226835,0.00021917,2]
[358374539,1745011838814,-500.0,0.00021917,2]
[358374541,1745011838823,-500.0,0.00021917,2]
[358374543,1745011838832,-500.0,0.00021917,2]
[358374545,1745011838841,-924.95,0.00021917,2]
[358374547,1745011838851,-582.64,0.00021917,2]
[358374549,1745011838860,-182.66659139,0.00021917,2]
[358374551,1745011838870,-500.0,0.00021917,2]
[358374553,1745011838880,-500.0,0.00021917,2]
[358374555,1745011838889,-556.49,0.00021917,2]
[358374557,1745011838899,-500.0,0.00021917,2]
[358374559,1745011838908,-500.0,0.00021917,2]
[358374561,1745011838917,-500.0,0.00021917,2]
[358374563,1745011838927,-704.28,0.00021917,2]
[358374565,1745011838937,-1169.1,0.00021917,2]
[358374567,1745011838946,-500.0,0.00021917,2]
[358374569,1745011838956,-630.6275549,0.00021917,2]
[358374571,1745011838965,-619.27,0.00021917,2]
[358374573,1745011838975,-542.67,0.00021917,2]
[358374575,1745011838984,-500.0,0.00021917,2]
[358374577,1745011838993,-500.0,0.00021917,2]
[358374579,1745011839002,-500.0,0.00021917,2]
[358374581,1745011839012,-500.0,0.00021917,2]
[358374583,1745011839021,-500.0,0.00021917,2]
[358374585,1745011839031,-500.0,0.00021917,2]
[358374587,1745011839040,-500.46,0.00021917,2]
[358374588,1745011839050,-500.0,0.00021917,2]
[358374589,1745011839059,-500.0,0.00021917,2]
[358374590,1745011839070,-1085.76,0.00021917,2]
[358374591,1745011839082,-500.0,0.00021917,2]
[358374592,1745011839093,-500.0,0.00021917,2]
[358374593,1745011839104,-534.99,0.00021917,2]
[358374594,1745011839113,-581.06,0.00021917,2]
[358374595,1745011839122,-539.74,0.00021917,2]
[358374596,1745011839131,-941.97,0.00021917,2]
[358374597,1745011839140,-500.0,0.00021917,2]
[358374598,1745011839150,-500.0,0.00021917,2]
[358374599,1745011839159,-500.0,0.00021917,2]
[358374600,1745011839169,-500.0,0.00021917,2]
[358374601,1745011839179,-500.0,0.00021917,2]
[358374602,1745011839189,-500.0,0.00021917,2]
[358374603,1745011839199,-500.0,0.00021917,2]
[358374604,1745011839208,-500.0,0.00021917,2]
[358374605,1745011839218,-500.0,0.00021917,2]
[358374606,1745011839227,-638.18,0.00021917,2]
[358374607,1745011839236,-500.0,0.00021917,2]
[358374608,1745011839246,-500.0,0.00021917,2]
[358374609,1745011839255,-500.0,0.00021917,2]
[358374610,1745011839264,-500.0,0.00021917,2]
[358374611,1745011839273,-500.0,0.00021917,2]
[358374612,1745011839282,-500.0,0.00021917,2]
[358374613,1745011839291,-500.0,0.00021917,2]
[358374614,1745011839301,-500.0,0.00021917,2]
[358374615,1745011839311,-500.0,0.00021917,2]
[358374616,1745011839320,-500.0,0.00021917,2]
[358374617,1745011839329,-500.0,0.00021917,2]
[358374618,1745011839338,-500.0,0.00021917,2]
[358374619,1745011839355,-500.0,0.00021917,2]
[358374620,1745011839364,-500.0,0.00021917,2]
[358374621,1745011839373,-545.3,0.00021917,2]
[358374622,1745011839383,-500.0,0.00021917,2]
[358374623,1745011839393,-500.0,0.00021917,2]
[358374624,1745011839402,-500.0,0.00021917,2]
[358374625,1745011839411,-600.96,0.00021917,2]
[358374626,1745011839421,-796.17,0.00021917,2]
[358374627,1745011839431,-500.0,0.00021917,2]
[358374628,1745011839442,-500.0,0.00021917,2]
[358374629,1745011839451,-500.0,0.00021917,2]
[358374630,1745011839461,-500.0,0.00021917,2]
[358374631,1745011839470,-500.0,0.00021917,2]
[358374632,1745011839480,-500.0,0.00021917,2]
[358374633,1745011839489,-500.0,0.00021917,2]
[358374634,1745011839499,-500.0,0.00021917,2]
[358374635,1745011839508,-500.0,0.00021917,2]
[358374636,1745011839518,-161.98698915,0.00021917,2]
[358374637,1745011839528,-598.47293409,0.00021917,2]
[358374638,1745011839537,-500.0,0.00021917,2]
[358374639,1745011839547,-500.0,0.00021917,2]
[358374640,1745011839556,-238.78429681,0.00021917,2]
[358374641,1745011839565,-602.0,0.00021917,2]
[358374642,1745011839575,-500.0,0.00021917,2]
[358374643,1745011839584,-500.0,0.00021917,2]
[358374644,1745011839594,-500.0,0.00021917,2]
[358374645,1745011839603,-500.0,0.00021917,2]
[358374646,1745011839612,-847.77,0.00021917,2]
[358374647,1745011839621,-612.52,0.00021917,2]
[358374648,1745011839630,-181.10432266,0.00021917,2]
[358374649,1745011839639,-500.0,0.00021917,2]
[358374650,1745011839648,-500.0,0.00021917,2]
[358374651,1745011839657,-500.0,0.00021917,2]
[358374652,1745011839666,-500.0,0.00021917,2]
[358374653,1745011839676,-500.0,0.00021917,2]
[358374654,1745011839686,-500.0,0.00021917,2]
[358374655,1745011839696,-500.0,0.00021917,2]
[358374656,1745011839706,-500.0,0.00021917,2]
[358374657,1745011839715,-500.0,0.00021917,2]
[358374658,1745011839724,-500.0,0.00021917,2]
[358374659,1745011839734,-1000.93,0.00021917,2]
[358374660,1745011839744,-559.3,0.00021917,2]
[358374661,1745011839754,-520.6,0.00021917,2]
[358374662,1745011839763,-500.0,0.00021917,2]
[358374663,1745011839773,-500.0,0.00021917,2]
[358374664,1745011839783,-543.77,0.00021917,2]
[358374665,1745011839792,-1422.24,0.00021917,2]
[358374666,1745011839803,-500.0,0.00021917,2]
[358374667,1745011839812,-500.0,0.00021917,2]
[358374668,1745011839821,-360.30577071,0.00021917,2]
[358374669,1745011839831,-500.0,0.00021917,2]
[358374670,1745011839840,-500.0,0.00021917,2]
[358374671,1745011839849,-763.76,0.00021917,2]
[358374672,1745011839859,-500.0,0.00021917,2]
[358374673,1745011839869,-500.0,0.00021917,2]
[358374674,1745011839878,-500.0,0.00021917,2]
[358374675,1745011839888,-500.0,0.00021917,2]
[358374676,1745011839897,-500.0,0.00021917,2]
[358374677,1745011839906,-500.0,0.00021917,2]
[358374678,1745011839915,-500.0,0.00021917,2]
[358374679,1745011839925,-500.0,0.00021917,2]
[358374680,1745011839935,-939.15,0.00021917,2]
[358374681,1745011839944,-500.0,0.00021917,2]
[358374682,1745011839953,-500.0,0.00021917,2]
[358374683,1745011839963,-554.00690559,0.00021917,2]
[358374684,1745011839972,-500.0,0.00021917,2]
[358374685,1745011839981,-500.0,0.00021917,2]
[358374686,1745011839991,-500.0,0.00021917,2]
[358374687,1745011840000,-500.0,0.00021917,2]
[358374688,1745011840009,-500.0,0.00021917,2]
[358374689,1745011840019,-500.0,0.00021917,2]
[358374690,1745011840030,-500.0,0.00021917,2]
[358374691,1745011840039,-183.81034988,0.00021917,2]
[358374692,1745011840049,-500.0,0.00021917,2]
[358374693,1745011840059,-500.0,0.00021917,2]
[358374694,1745011840070,-500.0,0.00021917,2]
[358374695,1745011840080,-500.0,0.00021917,2]
[358374696,1745011840092,-500.0,0.00021917,2]
[358374697,1745011840102,-500.0,0.00021917,2]
[358374698,1745011840111,-926.48,0.00021917,2]
[358374699,1745011840119,-583.30739675,0.00021917,2]
[358374700,1745011840130,-500.0,0.00021917,2]
[358374701,1745011840139,-500.0,0.00021917,2]
[358374702,1745011840149,-500.0,0.00021917,2]
[358374703,1745011840158,-1289.19,0.00021917,2]
[358374704,1745011840168,-500.0,0.00021917,2]
[358374705,1745011840177,-500.0,0.00021917,2]
[358374706,1745011840187,-694.85,0.00021917,2]
[358374707,1745011840197,-500.0,0.00021917,2]
[358374708,1745011840207,-268.20024587,0.00021917,2]
[358374709,1745011840219,-500.0,0.00021917,2]
[358374710,1745011840230,-500.0,0.00021917,2]
[358374711,1745011840239,-500.0,0.00021917,2]
[358374712,1745011840249,-500.0,0.00021917,2]
[358374713,1745011840259,-543.23,0.00021917,2]
[358374715,1745011840268,-500.0,0.00021917,2]
[358374717,1745011840278,-500.0,0.00021917,2]
[358374720,1745011840287,-500.0,0.00021917,2]
[358374722,1745011840296,-500.0,0.00021917,2]
[358374723,1745011840306,-500.0,0.00021917,2]
[358374724,1745011840316,-500.0,0.00021917,2]
[358374725,1745011840325,-500.0,0.00021917,2]
[358374726,1745011840334,-500.0,0.00021917,2]
[358374727,1745011840346,-500.0,0.00021917,2]
[358374728,1745011840355,-500.0,0.00021917,2]
[358374729,1745011840364,-585.35,0.00021917,2]
[358374730,1745011840372,-500.0,0.00021917,2]
[358374731,1745011840383,-500.0,0.00021917,2]
[358374732,1745011840392,-500.0,0.00021917,2]
[358374733,1745011840401,-500.0,0.00021917,2]
[358374734,1745011840411,-506.41,0.00021917,2]
[358374735,1745011840423,-500.0,0.00021917,2]
[358374736,1745011840433,-500.0,0.00021917,2]
[358374737,1745011840443,-500.0,0.00021917,2]
[358374738,1745011840453,-2807.95,0.00021917,2]
[358374739,1745011840462,-500.0,0.00021917,2]
[358374740,1745011840472,-500.0,0.00021917,2]
[358374741,1745011840482,-500.0,0.00021917,2]
[358374742,1745011840492,-500.0,0.00021917,2]
[358374743,1745011840501,-500.0,0.00021917,2]
[358374744,1745011840511,-500.0,0.00021917,2]
[358374745,1745011840520,-500.0,0.00021917,2]
[358374746,1745011840530,-1257.76,0.00021917,2]
[358374747,1745011840539,-500.0,0.00021917,2]
[358374748,1745011840548,-500.0,0.00021917,2]
[358374749,1745011840558,-500.0,0.00021917,2]
[358374750,1745011840568,-500.0,0.00021917,2]
[358374751,1745011840577,-500.0,0.00021917,2]
[358374752,1745011840587,-500.0,0.00021917,2]
[358374753,1745011840597,-500.0,0.00021917,2]
[358374754,1745011840607,-500.0,0.00021917,2]
[358374755,1745011840616,-500.0,0.00021917,2]
[358374756,1745011840626,-500.0,0.00021917,2]
[358374757,1745011840636,-500.0,0.00021917,2]
[358374758,1745011840645,-500.0,0.00021917,2]
[358374759,1745011840655,-500.0,0.00021917,2]
[358374760,1745011840665,-500.0,0.00021917,2]
[358374761,1745011840674,-677.04,0.00021917,2]
[358374762,1745011840684,-506.33062371,0.00021917,2]
[358374763,1745011840695,-500.0,0.00021917,2]
[358374764,1745011840704,-500.0,0.00021917,2]
[358374765,1745011840714,-1051.87,0.00021917,2]
[358374766,1745011840723,-500.0,0.00021917,2]
[358374767,1745011840733,-500.0,0.00021917,2]
[358374768,1745011840743,-500.0,0.00021917,2]
[358374769,1745011840752,-1168.54,0.00021917,2]
[358374770,1745011840762,-500.0,0.00021917,2]
[358374772,1745011840772,-736.56,0.00021917,2]
[358374773,1745011840781,-500.0,0.00021917,2]
[358374774,1745011840796,-220.43507036,0.00021917,2]
[358374775,1745011840810,-541.3,0.00021917,2]
[358374777,1745011840964,-709.42,0.00021917,2]
[358374778,1745011840975,-500.0,0.00021917,2]
[358374779,1745011840985,-919.67,0.00021917,2]
[358374780,1745011840994,-500.0,0.00021917,2]
[358374781,1745011841004,-500.0,0.00021917,2]
[358374782,1745011841019,-449.10325074,0.00021917,2]
[358374783,1745011841029,-500.0,0.00021917,2]
[358374784,1745011841038,-500.0,0.00021917,2]
[358374785,1745011841048,-500.0,0.00021917,2]
[358374786,1745011841057,-500.0,0.00021917,2]
[358374787,1745011841066,-513.76,0.00021917,2]
[358374788,1745011841076,-500.0,0.00021917,2]
[358374789,1745011841086,-500.0,0.00021917,2]
[358374790,1745011841095,-1109.42,0.00021917,2]
[358374791,1745011841106,-500.0,0.00021917,2]
[358374792,1745011841116,-566.36,0.00021917,2]
[358374793,1745011841125,-500.0,0.00021917,2]
[358374794,1745011841135,-500.0,0.00021917,2]
[358374795,1745011841145,-616.91,0.00021917,2]
[358374796,1745011841156,-500.0,0.00021917,2]
[358374797,1745011841165,-500.0,0.00021917,2]
[358374798,1745011841175,-500.0,0.00021917,2]
[358374799,1745011841185,-500.0,0.00021917,2]
[358374800,1745011841195,-500.0,0.00021917,2]
[358374801,1745011841204,-502.96140664,0.00021917,2]
[358374802,1745011841213,-500.0,0.00021917,2]
[358374803,1745011841223,-500.0,0.00021917,2]
[358374804,1745011841233,-500.0,0.00021917,2]
[358374805,1745011841243,-500.0,0.00021917,2]
[358374806,1745011841252,-500.0,0.00021917,2]
[358374807,1745011841263,-500.0,0.00021917,2]
[358374808,1745011841273,-500.0,0.00021917,2]
[358374809,1745011841283,-694.64,0.00021917,2]
[358374810,1745011841293,-342.37238357,0.00021917,2]
[358374811,1745011841303,-500.0,0.00021917,2]
[358374812,1745011841312,-500.0,0.00021917,2]
[358374813,1745011841322,-664.88,0.00021917,2]
[358374814,1745011841332,-500.0,0.00021917,2]
[358374815,1745011841344,-307.53922661,0.00021917,2]
[358374816,1745011841354,-500.0,0.00021917,2]
[358374817,1745011841363,-500.0,0.00021917,2]
[358374818,1745011841372,-579.28,0.00021917,2]
[358374819,1745011841382,-741.16,0.00021917,2]
[358374820,1745011841392,-500.0,0.00021917,2]
[358374821,1745011841402,-702.5,0.00021917,2]
[358374822,1745011841411,-500.0,0.00021917,2]
[358374823,1745011841422,-500.0,0.00021917,2]
[358374824,1745011841431,-500.0,0.00021917,2]
[358374825,1745011841442,-758.83,0.00021917,2]
[358374826,1745011841452,-610.11,0.00021917,2]
[358374827,1745011841461,-726.4,0.00021917,2]
[358374828,1745011841470,-500.0,0.00021917,2]
[358374829,1745011841480,-500.0,0.00021917,2]
[358374830,1745011841490,-500.0,0.00021917,2]
[358374831,1745011841500,-500.0,0.00021917,2]
[358374832,1745011841509,-1123.36,0.00021917,2]
[358374833,1745011841519,-500.0,0.00021917,2]
[358374834,1745011841529,-500.0,0.00021917,2]
[358374835,1745011841538,-500.0,0.00021917,2]
[358374836,1745011841548,-745.03,0.00021917,2]
[358374837,1745011841558,-586.05,0.00021917,2]
[358374838,1745011841568,-500.0,0.00021917,2]
[358374839,1745011841577,-500.0,0.00021917,2]
[358374840,1745011841587,-500.0,0.00021917,2]
[358374841,1745011841597,-500.0,0.00021917,2]
[358374842,1745011841606,-782.43,0.00021917,2]
[358374843,1745011841617,-500.0,0.00021917,2]
[358374844,1745011841626,-3629.62,0.00021917,2]
[358374845,1745011841636,-500.0,0.00021917,2]
[358374846,1745011841646,-500.0,0.00021917,2]
[358374847,1745011841655,-500.0,0.00021917,2]
[358374848,1745011841665,-500.0,0.00021917,2]
[358374849,1745011841675,-500.0,0.00021917,2]
[358374850,1745011841685,-176.01431605,0.00021917,2]
[358374851,1745011841695,-500.0,0.00021917,2]
[358374852,1745011841705,-500.0,0.00021917,2]
[358374853,1745011841714,-500.0,0.00021917,2]
[358374854,1745011841724,-531.75,0.00021917,2]
[358374855,1745011841734,-500.0,0.00021917,2]
[358374856,1745011841744,-500.0,0.00021917,2]
[358374857,1745011841754,-500.0,0.00021917,2]
[358374858,1745011841764,-500.0,0.00021917,2]
[358374859,1745011841774,-500.0,0.00021917,2]
[358374860,1745011841784,-500.0,0.00021917,2]
[358374861,1745011841794,-500.0,0.00021917,2]
[358374862,1745011841803,-500.0,0.00021917,2]
[358374863,1745011841813,-500.0,0.00021917,2]
[358374864,1745011841824,-576.65,0.00021917,2]
[358374865,1745011841834,-500.0,0.00021917,2]
[358374866,1745011841843,-578.54868626,0.00021917,2]
[358374867,1745011841853,-500.0,0.00021917,2]
[358374868,1745011841862,-1039.73,0.00021917,2]
[358374869,1745011841872,-500.0,0.00021917,2]
[358374870,1745011841881,-500.0,0.00021917,2]
[358374871,1745011841891,-500.0,0.00021917,2]
[358374872,1745011841901,-500.0,0.00021917,2]
[358374873,1745011841911,-1622.7,0.00021917,2]
[358374874,1745011841920,-500.0,0.00021917,2]
[358374875,1745011841930,-500.0,0.00021917,2]
[358374876,1745011841940,-500.0,0.00021917,2]
[358374877,1745011841949,-500.0,0.00021917,2]
[358374878,1745011841959,-500.0,0.00021917,2]
[358374879,1745011841969,-500.0,0.00021917,2]
[358374880,1745011841978,-1079.22,0.00021917,2]
[358374881,1745011841988,-260.80794761,0.00021917,2]
[358374882,1745011842194,-239.19205239,0.00021917,2]
[358374883,1745011842204,-322.6557354,0.00021917,2]
[358374884,1745011842216,-351.3142646,0.00021917,2]
[358374885,1745011842225,-500.0,0.00021917,2]
[358374886,1745011842234,-139.98943403,0.00021917,2]
[358374887,1745011842246,-252.15239808,0.00021917,2]
[358374888,1745011842273,-107.85816789,0.00021917,2]
[358374889,1745011842283,-1412.39,0.00021917,2]
[358374890,1745011842292,-752.22,0.00021917,2]
[358374891,1745011842302,-500.0,0.00021917,2]
[358374892,1745011842312,-500.0,0.00021917,2]
[358374893,1745011842321,-500.0,0.00021917,2]
[358374894,1745011842330,-500.0,0.00021917,2]
[358374895,1745011842340,-526.13,0.00021917,2]
[358374896,1745011842353,-500.0,0.00021917,2]
[358374897,1745011842363,-516.57,0.00021917,2]
[358374898,1745011842374,-615.19,0.00021917,2]
[358374899,1745011842385,-1171.33,0.00021917,2]
[358374900,1745011842396,-500.0,0.00021917,2]
[358374901,1745011842406,-500.0,0.00021917,2]
[358374902,1745011842417,-500.0,0.00021917,2]
[358374903,1745011842427,-500.0,0.00021917,2]
[358374904,1745011842437,-500.0,0.00021917,2]
[358374905,1745011842446,-500.0,0.00021917,2]
[358374906,1745011842456,-2346.9,0.00021917,2]
[358374907,1745011842466,-500.0,0.00021917,2]